[Event "NSV Open-ch Rapid 2019"]
[Site "Lueneburg"]
[Date "2019.08.03"]
[Round "4.1"]
[White "Schneider, Ilja"]
[Black "Vorobiov, Evgeny E."]
[Result "1-0"]
[ECO "D22"]
[WhiteElo "2494"]
[BlackElo "2578"]
[Annotator "RC"]
[PlyCount "67"]
[EventDate "2019.08.03"]
[EventType "swiss"]
[EventCountry "GER"]
[SourceTitle "playchess.com"]
[Source "ChessBase"]
[SourceQuality "1"]
[TimeControl "600+5"]

1. d4 {[%emt 0:00:00]} d5 {[%emt 0:00:00]} 2. c4 {[%emt 0:00:00]} dxc4 {[%emt 0:00:00]} 3. Nf3 {[%emt 0:00:00]} a6 {[%emt 0:00:00]} 4. e3 {[%emt 0:00:05]} Bg4 {[%emt 0:00:00]} 5. Bxc4 {[%emt 0:00:01]} e6 {[%emt 0:00:02]} 6. h3 {[%emt 0:00:04]} Bh5 {[%emt 0:00:01]} 7. b3 {[%emt 0:00:05]} Nf6 {[%emt 0:00:07]} 8. O-O {[%emt 0:00:02]} Nc6 {[%emt 0:00:21]} 9. Bb2 {[%emt 0:00:02]} Bd6 {[%emt 0:00:14]} 10. Be2 {[%emt 0:00:09]} O-O {[%emt 0:00:22]} 11. Nc3 {[%emt 0:00:17]} Qe7 {[%emt 0:00:15]} 12. Nd2 {[%emt 0:00:04]} Bxe2 {[%emt 0:00:17]} 13. Qxe2 {[%emt 0:00:01]} Rad8 {[%emt 0:00:18]} 14. Nde4 {[%emt 0:00:22]} Nxe4 {[%emt 0:00:52]} 15. Nxe4 {[%emt 0:00:02]} Nb4 {[%emt 0:00:03]} 16. Ba3 {[%emt 0:00:30]} Nd5 {[%emt 0:00:30]} 17. Nxd6 {[%emt 0:00:43]} cxd6 {[%emt 0:00:07]} 18. Rfc1 {[%emt 0:00:39]} f5 {[%emt 0:00:12]} 19. Rc2 {[%emt 0:00:53]} f4 {[%emt 0:01:34]} 20. exf4 {[%emt 0:01:13]} Nxf4 {[%emt 0:00:58]} 21. Qe4 {[%emt 0:00:32]} Qg5 {[%emt 0:01:13]} 22. Kh2 {[%emt 0:00:26]} Rf6 {[%emt 0:00:28]} 23. Qxb7 {[%emt 0:01:29]} d5 {[%emt 0:00:28]} 24. Rg1 {[%emt 0:00:26]} Qf5 {[%emt 0:02:38]} 25. Rc7 {[%emt 0:00:50]} Rg6 {[%emt 0:00:16]} 26. g4 {[%emt 0:00:49]} Qe4 {[%emt 0:00:05]} 27. Qc8 {[%emt 0:00:41]} h6 {[%emt 0:00:31]} 28. Qxd8+ {[%emt 0:00:01]} Kh7 {[%emt 0:00:02]} 29. Rc8 {[%emt 0:00:10]} Rf6 {[%emt 0:00:06]} 30. Qg8+ {[%emt 0:00:16]} Kg6 {[%emt 0:00:02]} 31. Rc7 {[%emt 0:00:11]} Nh5 {[%emt 0:00:18]} 32. gxh5+ {[%emt 0:00:11]} Kxh5 {[%emt 0:00:01]} 33. Rcxg7 {[%emt 0:00:40]} Rxf2+ {[%emt 0:00:08]} 34. R7g2 {[%emt 0:00:02]} 1-0

[Event "NSV Open-ch Rapid 2019"]
[Site "Lueneburg"]
[Date "2019.08.03"]
[Round "4.10"]
[White "Bargsten, Justus"]
[Black "Chennaoui, Yasin"]
[Result "1-0"]
[ECO "B63"]
[WhiteElo "1946"]
[BlackElo "2092"]
[Annotator "NA RC"]
[PlyCount "77"]
[EventDate "2019.08.03"]
[EventType "swiss"]
[EventCountry "GER"]
[SourceTitle "playchess.com"]
[Source "ChessBase"]
[SourceQuality "1"]
[TimeControl "600+5"]

1. e4 {[%emt 0:00:00]} c5 {[%emt 0:00:00]} 2. Nf3 {[%emt 0:10:10]} Nc6 3. d4 {[%emt 0:00:00]} cxd4 {[%emt 0:00:00]} 4. Nxd4 {[%emt 0:00:00]} Nf6 {[%emt 0:00:00]} 5. Nc3 {[%emt 0:00:00]} d6 {[%emt 0:00:00]} 6. Bg5 {[%emt 0:00:00]} e6 {[%emt 0:00:00]} 7. f4 {[%emt 0:00:00]} Be7 {[%emt 0:00:02]} 8. Qd2 {[%emt 0:00:00]} h6 {[%emt 0:00:01]} 9. Bh4 {[%emt 0:00:00]} Nxe4 {[%emt 0:00:01]} 10. Nxe4 {[%emt 0:00:00]} Bxh4+ {[%emt 0:00:02]} 11. g3 {[%emt 0:00:00]} Be7 {[%emt 0:00:07]} 12. Bb5 {[%emt 0:00:00]} Bd7 {[%emt 0:00:08]} 13. O-O-O {[%emt 0:00:00]} d5 {[%emt 0:00:04]} 14. Nc3 {[%emt 0:00:00]} Bf6 {[%emt 0:00:37]} 15. Bxc6 {[%emt 0:00:00]} bxc6 {[%emt 0:00:02]} 16. Rhe1 {[%emt 0:00:00]} O-O {[%emt 0:00:09]} 17. Nf3 {[%emt 0:00:00]} Rb8 {[%emt 0:00:26]} 18. Ne5 {[%emt 0:00:00]} Bxe5 {[%emt 0:00:04]} 19. Rxe5 {[%emt 0:01:25]} Qb6 20. b3 {[%emt 0:00:00]} f6 {[%emt 0:00:21]} 21. Ree1 {[%emt 0:00:00]} Rbe8 {[%emt 0:00:33]} 22. Na4 {[%emt 0:00:00]} Qb5 {[%emt 0:00:18]} 23. Qd4 {[%emt 0:00:00]} a5 {[%emt 0:00:18]} 24. Nc5 {[%emt 0:00:00]} Bc8 {[%emt 0:00:03]} 25. a4 {[%emt 0:00:00]} Qb8 {[%emt 0:00:04]} 26. Qc3 {[%emt 0:00:00]} Qa7 {[%emt 0:00:21]} 27. Nd3 {[%emt 0:00:00]} Re7 {[%emt 0:00:13]} 28. Qxc6 {[%emt 0:00:00]} Rc7 {[%emt 0:00:47]} 29. Qd6 {[%emt 0:00:00]} Bd7 {[%emt 0:00:13]} 30. Rxe6 {[%emt 0:00:00]} Bxe6 {[%emt 0:00:03]} 31. Qxe6+ {[%emt 0:00:00]} Kh8 {[%emt 0:00:03]} 32. Qxd5 {[%emt 0:00:00]} Qe3+ {[%emt 0:01:16]} 33. Kb1 {[%emt 0:00:00]} Rc3 {[%emt 0:00:35]} 34. Nb2 {[%emt 0:00:00]} Rfc8 {[%emt 0:00:46]} 35. Qxa5 {[%emt 0:00:00]} Rxc2 {[%emt 0:00:13]} 36. Rd8+ {[%emt 0:00:00]} Kh7 {[%emt 0:00:23]} 37. Qf5+ {[%emt 0:00:00]} g6 {[%emt 0:00:06]} 38. Qd7+ {[%emt 0:00:00]} Qe7 {[%emt 0:00:03]} 39. Qxe7# {[%emt 0:00:00]} 1-0

[Event "NSV Open-ch Rapid 2019"]
[Site "Lueneburg"]
[Date "2019.08.03"]
[Round "4.11"]
[White "Daemmig, Matthias"]
[Black "Toepper, Olaf"]
[Result "0-1"]
[ECO "B09"]
[WhiteElo "2059"]
[BlackElo "1896"]
[Annotator "NA RC"]
[PlyCount "56"]
[EventDate "2019.08.03"]
[EventType "swiss"]
[EventCountry "GER"]
[SourceTitle "playchess.com"]
[Source "ChessBase"]
[SourceQuality "1"]
[TimeControl "600+5"]

1. d4 {[%emt 0:00:00]} Nf6 {[%emt 0:00:00]} 2. Nc3 {[%emt 0:00:00]} g6 {[%emt 0:00:03]} 3. e4 {[%emt 0:00:00]} d6 {[%emt 0:00:23]} 4. f4 {[%emt 0:00:16]} Bg7 {[%emt 0:00:20]} 5. Bc4 {[%emt 0:00:24]} e6 {[%emt 0:00:24]} 6. Bb3 {[%emt 0:00:24]} O-O {[%emt 0:00:10]} 7. Be3 {[%emt 0:00:02]} Nbd7 {[%emt 0:00:19]} 8. Nf3 {[%emt 0:00:06]} c5 {[%emt 0:00:18]} 9. dxc5 {[%emt 0:00:45]} Nxc5 {[%emt 0:00:13]} 10. e5 {[%emt 0:01:12]} Nfe4 {[%emt 0:00:28]} 11. Nxe4 {[%emt 0:00:28]} Nxe4 {[%emt 0:00:04]} 12. O-O {[%emt 0:01:31]} b6 {[%emt 0:00:29]} 13. c3 {[%emt 0:00:47]} Bb7 {[%emt 0:00:09]} 14. exd6 {[%emt 0:00:13]} Nxd6 {[%emt 0:00:13]} 15. Bd4 {[%emt 0:00:46]} Qc7 {[%emt 0:00:36]} 16. Bxg7 {[%emt 0:00:14]} Kxg7 {[%emt 0:00:01]} 17. Qe2 {[%emt 0:00:10]} Nf5 {[%emt 0:00:50]} 18. Qe5+ {[%emt 0:00:50]} Qxe5 {[%emt 0:00:04]} 19. Nxe5 {[%emt 0:00:02]} Rfd8 {[%emt 0:00:28]} 20. Rf2 {[%emt 0:00:50]} Rd6 {[%emt 0:00:22]} 21. Rd1 {[%emt 0:00:08]} Rxd1+ 22. Bxd1 {[%emt 0:00:01]} Rd8 {[%emt 0:00:16]} 23. Bb3 {[%emt 0:00:03]} Ne3 {[%emt 0:00:29]} 24. Re2 {[%emt 0:00:12]} Nd5 {[%emt 0:00:15]} 25. Bxd5 {[%emt 0:00:07]} Bxd5 {[%emt 0:00:07]} 26. c4 {[%emt 0:02:39]} Bb7 {[%emt 0:00:08]} 27. Kf2 {[%emt 0:00:05]} Rd4 {[%emt 0:00:25]} 28. g3 {[%emt 0:00:00]} f6 {[%emt 0:00:36]} 0-1

[Event "NSV Open-ch Rapid 2019"]
[Site "Lueneburg"]
[Date "2019.08.03"]
[Round "4.13"]
[White "Schulz, Daniel"]
[Black "Kotyk, Michael"]
[Result "0-1"]
[ECO "E11"]
[WhiteElo "2071"]
[BlackElo "1998"]
[Annotator "NA RC"]
[PlyCount "101"]
[EventDate "2019.08.03"]
[EventType "swiss"]
[EventCountry "GER"]
[SourceTitle "playchess.com"]
[Source "ChessBase"]
[SourceQuality "1"]
[TimeControl "600+5"]

1. d4 {[%emt 0:00:00]} Nf6 {[%emt 0:00:00]} 2. c4 {[%emt 0:00:00]} e6 {[%emt 0:00:00]} 3. g3 {[%emt 0:00:00]} Bb4+ {[%emt 0:00:00]} 4. Bd2 {[%emt 0:00:00]} Qe7 {[%emt 0:00:00]} 5. Bg2 {[%emt 0:00:13]} O-O {[%emt 0:00:10]} 6. Nc3 {[%emt 0:00:15]} Nc6 {[%emt 0:00:07]} 7. Nf3 {[%emt 0:00:04]} d6 {[%emt 0:00:03]} 8. O-O {[%emt 0:00:20]} e5 {[%emt 0:00:01]} 9. dxe5 {[%emt 0:00:35]} dxe5 {[%emt 0:00:35]} 10. Nd5 {[%emt 0:00:26]} Nxd5 {[%emt 0:00:05]} 11. cxd5 {[%emt 0:00:03]} Nd4 {[%emt 0:00:31]} 12. Nxd4 {[%emt 0:00:40]} exd4 {[%emt 0:00:01]} 13. Bxb4 {[%emt 0:00:07]} Qxb4 {[%emt 0:00:02]} 14. Qc2 {[%emt 0:00:08]} c5 {[%emt 0:01:32]} 15. dxc6 {[%emt 0:00:12]} bxc6 {[%emt 0:00:01]} 16. Bxc6 {[%emt 0:01:03]} Rb8 {[%emt 0:00:01]} 17. Rab1 {[%emt 0:00:48]} Ba6 {[%emt 0:00:47]} 18. Rfe1 {[%emt 0:01:09]} Rfc8 {[%emt 0:00:09]} 19. Qa4 {[%emt 0:01:01]} Qb6 {[%emt 0:02:51]} 20. Be4 {[%emt 0:01:08]} Rc4 {[%emt 0:01:50]} 21. Qd7 {[%emt 0:00:25]} Rd8 {[%emt 0:01:02]} 22. Qe7 {[%emt 0:00:07]} Bb5 {[%emt 0:00:49]} 23. Bd3 {[%emt 0:00:15]} Rc5 {[%emt 0:00:20]} 24. Qe4 {[%emt 0:00:05]} f5 {[%emt 0:00:12]} 25. Qf3 {[%emt 0:00:13]} Bc6 {[%emt 0:00:03]} 26. Qf4 {[%emt 0:00:13]} Rf8 {[%emt 0:00:20]} 27. Qxd4 {[%emt 0:01:10]} f4 {[%emt 0:00:26]} 28. Be4 {[%emt 0:00:56]} fxg3 {[%emt 0:00:07]} 29. hxg3 {[%emt 0:00:10]} Bxe4 {[%emt 0:00:05]} 30. Qxe4 {[%emt 0:00:01]} Rcf5 {[%emt 0:00:01]} 31. Qe3 {[%emt 0:00:36]} Rxf2 {[%emt 0:00:14]} 32. Qxb6 {[%emt 0:00:01]} axb6 {[%emt 0:00:01]} 33. Rbc1 {[%emt 0:00:03]} R2f5 {[%emt 0:00:10]} 34. Rc6 {[%emt 0:00:05]} Rb5 {[%emt 0:00:01]} 35. b3 {[%emt 0:00:02]} Ra8 {[%emt 0:00:02]} 36. Rc2 {[%emt 0:00:14]} Rba5 {[%emt 0:00:08]} 37. a4 {[%emt 0:00:03]} b5 {[%emt 0:00:02]} 38. axb5 {[%emt 0:00:02]} Rxb5 {[%emt 0:00:00]} 39. Rc3 {[%emt 0:00:02]} Ra2 {[%emt 0:00:07]} 40. Kf2 {[%emt 0:00:05]} Rb2 {[%emt 0:00:01]} 41. Rd1 {[%emt 0:00:11]} R2xb3 {[%emt 0:00:13]} 42. Rc7 {[%emt 0:00:09]} Rf5+ {[%emt 0:00:09]} 43. Kg2 {[%emt 0:00:04]} Re3 {[%emt 0:00:08]} 44. Rd2 {[%emt 0:00:03]} h5 {[%emt 0:00:03]} 45. Rd8+ {[%emt 0:00:12]} Kh7 {[%emt 0:00:02]} 46. Rdd7 {[%emt 0:00:01]} Rxe2+ {[%emt 0:00:01]} 47. Kh3 {[%emt 0:00:01]} Rg5 {[%emt 0:00:08]} 48. Rd4 {[%emt 0:00:11]} Re3 {[%emt 0:00:06]} 49. Kh2 {[%emt 0:00:07]} Rexg3 {[%emt 0:00:03]} 50. Rd8 {[%emt 0:00:04]} Rg2+ {[%emt 0:00:03]} 51. Kh1 {[%emt 0:00:12]} 0-1

[Event "NSV Open-ch Rapid 2019"]
[Site "Lueneburg"]
[Date "2019.08.03"]
[Round "4.14"]
[White "Joppien, Arne"]
[Black "Rothenberg, Nina"]
[Result "1-0"]
[ECO "D37"]
[WhiteElo "1940"]
[BlackElo "1768"]
[Annotator "NA RC"]
[PlyCount "75"]
[EventDate "2019.08.03"]
[EventType "swiss"]
[EventCountry "GER"]
[SourceTitle "playchess.com"]
[Source "ChessBase"]
[SourceQuality "1"]
[TimeControl "600+5"]

1. d4 {[%emt 0:00:00]} e6 {[%emt 0:00:00]} 2. c4 {[%emt 0:00:02]} Nf6 {[%emt 0:00:00]} 3. Nf3 {[%emt 0:00:01]} d5 {[%emt 0:00:00]} 4. Nc3 {[%emt 0:00:10]} Be7 {[%emt 0:00:02]} 5. Bf4 {[%emt 0:00:04]} O-O {[%emt 0:00:03]} 6. e3 {[%emt 0:00:01]} Nh5 {[%emt 0:00:13]} 7. Bg3 {[%emt 0:00:16]} c6 {[%emt 0:00:32]} 8. Bxb8 {[%emt 0:00:50]} Rxb8 {[%emt 0:00:03]} 9. Ne5 {[%emt 0:00:02]} Nf6 {[%emt 0:00:07]} 10. Bd3 {[%emt 0:00:03]} Bd6 {[%emt 0:01:06]} 11. f4 {[%emt 0:00:14]} dxc4 {[%emt 0:00:50]} 12. Bxc4 {[%emt 0:00:21]} c5 {[%emt 0:00:31]} 13. O-O {[%emt 0:00:25]} cxd4 {[%emt 0:00:20]} 14. exd4 {[%emt 0:00:10]} Qc7 {[%emt 0:00:22]} 15. Nb5 {[%emt 0:01:19]} Qe7 {[%emt 0:00:40]} 16. Nxa7 {[%emt 0:00:43]} Rd8 {[%emt 0:00:52]} 17. Nb5 {[%emt 0:01:07]} Nd7 {[%emt 0:00:17]} 18. Nxd6 {[%emt 0:05:42]} Qxd6 {[%emt 0:00:03]} 19. Nf3 {[%emt 0:00:00]} Qxf4 {[%emt 0:00:54]} 20. Qb3 {[%emt 0:00:00]} Qd6 {[%emt 0:00:24]} 21. Rad1 {[%emt 0:00:00]} Nb6 {[%emt 0:00:30]} 22. Ne5 {[%emt 0:00:00]} Nxc4 {[%emt 0:00:23]} 23. Nxf7 {[%emt 0:00:00]} Qc7 {[%emt 0:00:31]} 24. Nxd8 {[%emt 0:00:00]} Na5 {[%emt 0:00:01]} 25. Nxe6 {[%emt 0:00:00]} Bxe6 {[%emt 0:00:21]} 26. Qxe6+ {[%emt 0:00:00]} Kh8 {[%emt 0:00:00]} 27. Rf7 {[%emt 0:00:00]} Qd8 {[%emt 0:00:19]} 28. d5 {[%emt 0:00:00]} Qg8 {[%emt 0:00:10]} 29. d6 {[%emt 0:00:00]} Re8 {[%emt 0:00:10]} 30. Qf5 {[%emt 0:00:00]} Nc6 {[%emt 0:00:12]} 31. d7 {[%emt 0:00:00]} Rd8 {[%emt 0:00:04]} 32. Rf1 {[%emt 0:00:01]} Nd4 {[%emt 0:00:10]} 33. Qd5 {[%emt 0:00:07]} Nc6 {[%emt 0:00:11]} 34. Qg5 {[%emt 0:00:17]} h6 {[%emt 0:00:11]} 35. Qxd8 {[%emt 0:00:14]} Qxd8 {[%emt 0:00:02]} 36. Rf8+ {[%emt 0:00:01]} Qxf8 {[%emt 0:00:01]} 37. Rxf8+ {[%emt 0:00:01]} Kh7 {[%emt 0:00:02]} 38. d8=Q {[%emt 0:00:04]} 1-0

[Event "NSV Open-ch Rapid 2019"]
[Site "Lueneburg"]
[Date "2019.08.03"]
[Round "4.15"]
[White "Langer, Michael S."]
[Black "Guo, Philipp Ziming"]
[Result "1-0"]
[ECO "A11"]
[WhiteElo "1911"]
[BlackElo "1728"]
[Annotator "NA RC"]
[PlyCount "75"]
[EventDate "2019.08.03"]
[EventType "swiss"]
[EventCountry "GER"]
[SourceTitle "playchess.com"]
[Source "ChessBase"]
[SourceQuality "1"]
[TimeControl "600+5"]

1. Nf3 {[%emt 0:00:00]} d5 {[%emt 0:00:00]} 2. e3 {[%emt 0:00:00]} Nf6 {[%emt 0:00:02]} 3. c4 {[%emt 0:00:00]} e6 {[%emt 0:00:04]} 4. Nc3 {[%emt 0:00:02]} c6 {[%emt 0:00:01]} 5. b3 {[%emt 0:00:03]} Bd6 {[%emt 0:00:04]} 6. Bb2 {[%emt 0:00:02]} Nbd7 {[%emt 0:00:02]} 7. Qc2 {[%emt 0:00:02]} O-O {[%emt 0:00:04]} 8. Be2 {[%emt 0:00:01]} b6 {[%emt 0:00:02]} 9. Rg1 {[%emt 0:00:02]} Bb7 {[%emt 0:00:12]} 10. g4 {[%emt 0:00:02]} Kh8 {[%emt 0:00:03]} 11. g5 {[%emt 0:00:21]} Ng8 {[%emt 0:00:07]} 12. h4 {[%emt 0:00:21]} dxc4 {[%emt 0:00:07]} 13. Bxc4 {[%emt 0:00:12]} c5 {[%emt 0:00:02]} 14. Be2 {[%emt 0:00:14]} Ne5 {[%emt 0:00:08]} 15. Nxe5 {[%emt 0:00:53]} Bxe5 {[%emt 0:00:02]} 16. f4 {[%emt 0:00:13]} Bd6 {[%emt 0:00:03]} 17. h5 {[%emt 0:01:04]} h6 {[%emt 0:00:54]} 18. Ne4 {[%emt 0:00:45]} f6 {[%emt 0:02:52]} 19. gxf6 {[%emt 0:00:42]} Nxf6 {[%emt 0:00:05]} 20. Nxf6 {[%emt 0:00:15]} Rxf6 {[%emt 0:00:14]} 21. Bxf6 {[%emt 0:02:02]} Qxf6 {[%emt 0:00:02]} 22. O-O-O {[%emt 0:00:48]} c4 {[%emt 0:00:42]} 23. bxc4 {[%emt 0:00:26]} Qa1+ {[%emt 0:00:09]} 24. Qb1 {[%emt 0:00:01]} Ba3+ {[%emt 0:00:35]} 25. Kc2 {[%emt 0:00:08]} Qf6 {[%emt 0:00:32]} 26. Qb3 {[%emt 0:00:38]} Bc5 {[%emt 0:00:10]} 27. Qc3 {[%emt 0:00:33]} Qe7 {[%emt 0:00:36]} 28. Bd3 {[%emt 0:01:20]} Bc6 {[%emt 0:00:26]} 29. Kb1 {[%emt 0:00:29]} Bb4 {[%emt 0:00:51]} 30. Qb2 {[%emt 0:00:07]} Ba3 {[%emt 0:00:08]} 31. Qb3 {[%emt 0:00:07]} Rd8 {[%emt 0:00:26]} 32. Bc2 {[%emt 0:00:01]} Be8 {[%emt 0:00:31]} 33. Bg6 {[%emt 0:00:22]} Bc6 {[%emt 0:00:37]} 34. d4 {[%emt 0:00:14]} Bf3 {[%emt 0:00:54]} 35. Rdf1 {[%emt 0:00:08]} Bc6 {[%emt 0:00:12]} 36. Bc2 {[%emt 0:00:06]} Rb8 {[%emt 0:00:33]} 37. Qd3 {[%emt 0:00:03]} Qb4+ {[%emt 0:00:15]} 38. Qb3 {[%emt 0:00:12]} 1-0

[Event "NSV Open-ch Rapid 2019"]
[Site "Lueneburg"]
[Date "2019.08.03"]
[Round "4.16"]
[White "Dralle, Hannes"]
[Black "Reimers, Achim"]
[Result "0-1"]
[ECO "B01"]
[WhiteElo "1732"]
[BlackElo "1975"]
[Annotator "NA RC"]
[PlyCount "63"]
[EventDate "2019.08.03"]
[EventType "swiss"]
[EventCountry "GER"]
[SourceTitle "playchess.com"]
[Source "ChessBase"]
[SourceQuality "1"]
[TimeControl "600+5"]

1. e4 {[%emt 0:00:00]} d5 {[%emt 0:00:00]} 2. exd5 {[%emt 0:00:02]} Qxd5 {[%emt 0:00:00]} 3. Nc3 {[%emt 0:00:01]} Qd8 {[%emt 0:00:00]} 4. Bc4 {[%emt 0:00:07]} Nf6 {[%emt 0:00:02]} 5. d4 {[%emt 0:00:02]} c6 {[%emt 0:00:06]} 6. Nf3 {[%emt 0:00:04]} e6 {[%emt 0:00:10]} 7. a4 {[%emt 0:00:27]} Be7 {[%emt 0:00:05]} 8. O-O {[%emt 0:00:16]} O-O {[%emt 0:00:04]} 9. Ne5 {[%emt 0:00:24]} Nbd7 {[%emt 0:00:03]} 10. f4 {[%emt 0:00:10]} Nd5 {[%emt 0:00:05]} 11. Ne4 {[%emt 0:00:39]} N7f6 {[%emt 0:00:04]} 12. Ng3 {[%emt 0:00:21]} Qc7 {[%emt 0:00:10]} 13. f5 {[%emt 0:00:40]} exf5 {[%emt 0:00:16]} 14. Nxf5 {[%emt 0:00:11]} Bxf5 {[%emt 0:00:59]} 15. Rxf5 {[%emt 0:00:01]} Bd6 {[%emt 0:00:10]} 16. Qf3 {[%emt 0:00:26]} Rae8 {[%emt 0:00:25]} 17. g3 {[%emt 0:01:45]} Bxe5 {[%emt 0:00:28]} 18. dxe5 {[%emt 0:00:10]} Rxe5 {[%emt 0:00:08]} 19. Bd3 {[%emt 0:00:40]} Rxf5 {[%emt 0:00:24]} 20. Qxf5 {[%emt 0:00:07]} Re8 {[%emt 0:00:55]} 21. Bg5 {[%emt 0:00:37]} Qb6+ {[%emt 0:00:11]} 22. Kh1 {[%emt 0:00:17]} Qxb2 {[%emt 0:00:07]} 23. Rf1 {[%emt 0:01:43]} h6 {[%emt 0:00:17]} 24. Bd2 {[%emt 0:00:36]} Qe5 {[%emt 0:01:13]} 25. Qf3 {[%emt 0:00:03]} a6 {[%emt 0:00:31]} 26. c4 {[%emt 0:00:09]} Nb6 {[%emt 0:00:25]} 27. Re1 {[%emt 0:00:18]} Qb8 {[%emt 0:00:06]} 28. Rf1 {[%emt 0:00:40]} Nbd7 {[%emt 0:00:19]} 29. Qf5 {[%emt 0:00:41]} Qe5 {[%emt 0:00:22]} 30. Qf3 {[%emt 0:00:07]} Qd4 {[%emt 0:00:13]} 31. h3 {[%emt 0:00:25]} Ne5 {[%emt 0:00:12]} 32. Bc3 {[%emt 0:00:31]} 0-1

[Event "NSV Open-ch Rapid 2019"]
[Site "Lueneburg"]
[Date "2019.08.03"]
[Round "4.18"]
[White "Wirries, Frank-Michael"]
[Black "Mundt, Alexandra"]
[Result "1-0"]
[ECO "B03"]
[WhiteElo "1858"]
[BlackElo "1756"]
[Annotator "NA RC"]
[PlyCount "91"]
[EventDate "2019.08.03"]
[EventType "swiss"]
[EventCountry "GER"]
[SourceTitle "playchess.com"]
[Source "ChessBase"]
[SourceQuality "1"]
[TimeControl "600+5"]

1. e4 {[%emt 0:00:00]} Nf6 {[%emt 0:00:00]} 2. e5 {[%emt 0:00:00]} Nd5 {[%emt 0:00:00]} 3. d4 {[%emt 0:00:01]} d6 {[%emt 0:00:00]} 4. c4 {[%emt 0:00:01]} Nb6 {[%emt 0:00:01]} 5. exd6 {[%emt 0:00:10]} cxd6 {[%emt 0:00:01]} 6. Nc3 {[%emt 0:00:04]} Nc6 {[%emt 0:00:06]} 7. Be3 {[%emt 0:00:13]} g6 {[%emt 0:00:03]} 8. d5 {[%emt 0:01:17]} Ne5 {[%emt 0:00:06]} 9. Bd4 {[%emt 0:00:01]} Rg8 {[%emt 0:00:58]} 10. Bxe5 {[%emt 0:00:39]} dxe5 {[%emt 0:00:02]} 11. Bd3 {[%emt 0:00:17]} Bg7 {[%emt 0:00:09]} 12. Qe2 {[%emt 0:00:16]} e6 {[%emt 0:00:30]} 13. Nf3 {[%emt 0:00:43]} f6 {[%emt 0:01:13]} 14. Rd1 {[%emt 0:00:33]} Kf7 {[%emt 0:00:38]} 15. dxe6+ {[%emt 0:00:13]} Bxe6 {[%emt 0:00:01]} 16. Bxg6+ {[%emt 0:00:02]} hxg6 {[%emt 0:00:05]} 17. Rxd8 {[%emt 0:00:02]} Raxd8 {[%emt 0:00:03]} 18. b3 {[%emt 0:00:35]} Bf8 {[%emt 0:00:13]} 19. O-O {[%emt 0:00:20]} Bb4 {[%emt 0:01:17]} 20. Ne4 {[%emt 0:00:06]} Rd7 {[%emt 0:00:03]} 21. Rd1 {[%emt 0:00:47]} Rgd8 {[%emt 0:00:04]} 22. Rxd7+ {[%emt 0:00:02]} Rxd7 {[%emt 0:00:01]} 23. h3 {[%emt 0:00:05]} Kg7 {[%emt 0:00:37]} 24. g4 {[%emt 0:00:44]} Nc8 {[%emt 0:00:40]} 25. c5 {[%emt 0:00:16]} Ne7 {[%emt 0:00:45]} 26. g5 {[%emt 0:00:22]} f5 {[%emt 0:01:24]} 27. Nf6 {[%emt 0:00:04]} Rd8 {[%emt 0:00:21]} 28. Qxe5 {[%emt 0:00:10]} Rd1+ {[%emt 0:00:25]} 29. Kg2 {[%emt 0:00:02]} Kf7 {[%emt 0:00:03]} 30. Qe2 {[%emt 0:00:26]} Rd8 {[%emt 0:00:11]} 31. Ne5+ {[%emt 0:00:01]} Kg7 {[%emt 0:00:19]} 32. Qb5 {[%emt 0:00:15]} Ba3 {[%emt 0:00:59]} 33. Qxb7 {[%emt 0:00:53]} Bxc5 {[%emt 0:00:01]} 34. Nc6 {[%emt 0:00:19]} Rd7 {[%emt 0:01:16]} 35. Ne8+ {[%emt 0:00:54]} Kf8 {[%emt 0:00:12]} 36. Qb8 {[%emt 0:00:08]} Bd5+ {[%emt 0:00:01]} 37. f3 {[%emt 0:00:13]} Bd6 {[%emt 0:00:09]} 38. Nc7+ {[%emt 0:00:10]} Kg7 {[%emt 0:00:03]} 39. Nxe7 {[%emt 0:00:19]} Bxc7 {[%emt 0:00:05]} 40. Qe8 {[%emt 0:00:26]} Be6 {[%emt 0:00:07]} 41. Qxg6+ {[%emt 0:00:05]} Kf8 {[%emt 0:00:01]} 42. Qxe6 {[%emt 0:00:10]} Rd2+ {[%emt 0:00:01]} 43. Kf1 {[%emt 0:00:05]} Rd1+ {[%emt 0:00:06]} 44. Ke2 {[%emt 0:00:10]} Rh1 {[%emt 0:00:04]} 45. Ng6+ {[%emt 0:00:13]} Kg7 {[%emt 0:00:03]} 46. Qf6+ {[%emt 0:00:05]} 1-0

[Event "NSV Open-ch Rapid 2019"]
[Site "Lueneburg"]
[Date "2019.08.03"]
[Round "4.20"]
[White "Serrer, David"]
[Black "Weidenhoefer, Max"]
[Result "1-0"]
[ECO "D45"]
[WhiteElo "1516"]
[BlackElo "1805"]
[Annotator "NA RC"]
[PlyCount "47"]
[EventDate "2019.08.03"]
[EventType "swiss"]
[EventCountry "GER"]
[SourceTitle "playchess.com"]
[Source "ChessBase"]
[SourceQuality "1"]
[TimeControl "600+5"]

1. c4 {[%emt 0:00:00]} c6 {[%emt 0:00:00]} 2. Nf3 {[%emt 0:00:01]} d5 {[%emt 0:00:00]} 3. e3 {[%emt 0:00:07]} Nf6 {[%emt 0:00:00]} 4. Nc3 {[%emt 0:00:04]} e6 {[%emt 0:00:26]} 5. d4 {[%emt 0:00:13]} Be7 {[%emt 0:00:02]} 6. Qc2 {[%emt 0:00:17]} Nbd7 {[%emt 0:00:13]} 7. Bd2 {[%emt 0:00:46]} dxc4 {[%emt 0:00:10]} 8. Bxc4 {[%emt 0:00:03]} Nb6 {[%emt 0:00:01]} 9. Bd3 {[%emt 0:00:14]} Nbd5 {[%emt 0:00:05]} 10. O-O {[%emt 0:00:03]} Nb4 {[%emt 0:00:03]} 11. Qb1 {[%emt 0:00:05]} Nxd3 {[%emt 0:00:05]} 12. Qxd3 {[%emt 0:00:03]} O-O {[%emt 0:00:03]} 13. Rfc1 {[%emt 0:00:06]} c5 {[%emt 0:00:02]} 14. Ne2 {[%emt 0:00:27]} cxd4 {[%emt 0:00:10]} 15. exd4 {[%emt 0:00:02]} Nd5 {[%emt 0:00:09]} 16. Ne5 {[%emt 0:00:04]} Bf6 {[%emt 0:00:10]} 17. Qg3 {[%emt 0:00:26]} Bxe5 {[%emt 0:00:16]} 18. Qxe5 {[%emt 0:00:07]} Nf6 {[%emt 0:00:12]} 19. Bg5 {[%emt 0:00:16]} b6 {[%emt 0:00:24]} 20. Rc7 {[%emt 0:00:17]} Ba6 {[%emt 0:00:22]} 21. Nf4 {[%emt 0:00:40]} Qb8 {[%emt 0:00:35]} 22. Bxf6 {[%emt 0:01:08]} gxf6 {[%emt 0:00:07]} 23. Qxf6 {[%emt 0:00:04]} Qxc7 {[%emt 0:00:18]} 24. Nh5 {[%emt 0:00:13]} 1-0